fUST/lending_fUST_20250411
["ID","MTS","AMOUNT","RATE_DAILY","PERIOD"]
[357689188,1744332695784,-151.0,0.00019178,2]
[357689189,1744332695793,-151.0,0.00019178,2]
[357689190,1744332695802,-151.0,0.00019178,2]
[357689191,1744332695812,-151.0,0.00019178,2]
[357689192,1744332695821,-151.0,0.00019178,2]
[357689193,1744332695831,-278.479041,0.00019178,2]
[357689194,1744332695841,-2015.50980725,0.00019205,5]
[357689195,1744332695851,-3000.0,0.00019212,2]
[357689196,1744332695861,-156.587,0.00019233,2]
[357689197,1744332695870,-162.380719,0.00019288,2]
[357689198,1744332695880,-1616.49634174,0.00019309,2]
[357689199,1744332695889,-64218.1685174,0.00019329,2]
[357689200,1744332695899,-168.3888056,0.00019343,2]
[357689201,1744332695908,-11630.24417326,0.00019383,2]
[357689202,1744332695917,-174.61919141,0.00019398,2]
[357689203,1744332695927,-1132.93,0.00019452,2]
[357689204,1744332695936,-3699.75,0.00019452,2]
[357689205,1744332695945,-865.73,0.00019452,2]
[357689206,1744332695955,-1251.82,0.00019452,2]
[357689207,1744332695963,-500.0,0.00019452,2]
[357689208,1744332695973,-599.27,0.00019452,2]
[357689209,1744332695982,-570.69,0.00019452,2]
[357689210,1744332695991,-822.09,0.00019452,2]
[357689211,1744332696000,-500.0,0.00019452,2]
[357689212,1744332696009,-276.909544,0.00019452,2]
[357689213,1744332696019,-500.0,0.00019452,2]
[357689214,1744332696027,-780.46,0.00019452,2]
[357689215,1744332696036,-911.25,0.00019452,2]
[357689216,1744332696045,-500.0,0.00019452,2]
[357689217,1744332696054,-500.0,0.00019452,2]
[357689218,1744332696063,-500.0,0.00019452,2]
[357689219,1744332696073,-500.0,0.00019452,2]
[357689220,1744332696082,-300.0,0.00019452,2]
[357689221,1744332696091,-176.13497145,0.00019452,2]
[357689222,1744332696100,-500.0,0.00019452,2]
[357689223,1744332696110,-500.0,0.00019452,2]
[357689224,1744332696120,-500.0,0.00019452,2]
[357689225,1744332696129,-500.0,0.00019452,2]
[357689226,1744332696138,-1232.99,0.00019452,2]
[357689227,1744332696147,-588.16,0.00019452,2]
[357689228,1744332696156,-500.0,0.00019452,2]
[357689229,1744332696165,-176.12252972,0.00019452,2]
[357689230,1744332696174,-500.0,0.00019452,2]
[357689231,1744332696183,-500.0,0.00019452,2]
[357689232,1744332696192,-507.17,0.00019452,2]
[357689233,1744332696201,-500.0,0.00019452,2]
[357689234,1744332696210,-1079.66,0.00019452,2]
[357689235,1744332696219,-1430.67,0.00019452,2]
[357689236,1744332696229,-1119.95,0.00019452,2]
[357689237,1744332696238,-625.16,0.00019452,2]
[357689238,1744332696247,-500.0,0.00019452,2]
[357689239,1744332696255,-500.0,0.00019452,2]
[357689240,1744332696265,-686.77,0.00019452,2]
[357689241,1744332696274,-2680.42,0.00019452,2]
[357689242,1744332696283,-500.0,0.00019452,2]
[357689243,1744332696293,-500.0,0.00019452,2]
[357689244,1744332696302,-500.0,0.00019452,2]
[357689245,1744332696311,-500.0,0.00019452,2]
[357689246,1744332696321,-596.86,0.00019452,2]
[357689247,1744332696330,-2411.42,0.00019452,2]
[357689248,1744332696339,-500.0,0.00019452,2]
[357689249,1744332696350,-687.7,0.00019452,2]
[357689250,1744332696359,-500.0,0.00019452,2]
[357689251,1744332696368,-902.62,0.00019452,2]
[357689252,1744332696378,-2689.13,0.00019452,2]
[357689253,1744332696387,-785.7,0.00019452,2]
[357689254,1744332696395,-500.0,0.00019452,2]
[357689255,1744332696405,-5675.99,0.00019452,2]
[357689256,1744332696414,-500.0,0.00019452,2]
[357689257,1744332696425,-870.2,0.00019452,2]
[357689258,1744332696434,-500.0,0.00019452,2]
[357689259,1744332696443,-597.88,0.00019452,2]
[357689260,1744332696453,-500.0,0.00019452,2]
[357689261,1744332696462,-626.25,0.00019452,2]
[357689262,1744332696471,-500.0,0.00019452,2]
[357689263,1744332696481,-892.18,0.00019452,2]
[357689264,1744332696491,-500.0,0.00019452,2]
[357689265,1744332696500,-682.01,0.00019452,2]
[357689266,1744332696510,-500.0,0.00019452,2]
[357689267,1744332696519,-500.0,0.00019452,2]
[357689268,1744332696528,-2060.38,0.00019452,2]
[357689269,1744332696538,-605.05,0.00019452,2]
[357689270,1744332696547,-500.0,0.00019452,2]
[357689271,1744332696557,-500.0,0.00019452,2]
[357689272,1744332696567,-323.79909973,0.00019452,2]
[357689273,1744332696576,-2354.26,0.00019452,2]
[357689274,1744332696586,-622.34,0.00019452,2]
[357689275,1744332696596,-500.0,0.00019452,2]
[357689276,1744332696605,-1017.63,0.00019452,2]
[357689277,1744332696614,-938.97,0.00019452,2]
[357689278,1744332696623,-500.0,0.00019452,2]
[357689279,1744332696633,-658.07,0.00019452,2]
[357689280,1744332696643,-500.0,0.00019452,2]
[357689281,1744332696652,-500.0,0.00019452,2]
[357689282,1744332696663,-1373.8,0.00019452,2]
[357689283,1744332696672,-753.79,0.00019452,2]
[357689284,1744332696682,-1265.29,0.00019452,2]
[357689285,1744332696691,-500.0,0.00019452,2]
[357689286,1744332696701,-820.1,0.00019452,2]
[357689287,1744332696711,-584.98,0.00019452,2]
[357689288,1744332696720,-1800.19,0.00019452,2]
[357689289,1744332696730,-508.82,0.00019452,2]
[357689290,1744332696739,-559.92631677,0.00019452,2]
[357689291,1744332696749,-500.0,0.00019452,2]
[357689292,1744332696758,-965.93,0.00019452,2]
[357689293,1744332696768,-622.37,0.00019452,2]
[357689294,1744332696777,-518.01429105,0.00019452,2]
[357689295,1744332696787,-964.69,0.00019452,2]
[357689296,1744332696796,-1069.32,0.00019452,2]
[357689297,1744332696805,-1504.79,0.00019452,2]
[357689298,1744332696814,-626.21,0.00019452,2]
[357689299,1744332696823,-522.1,0.00019452,2]
[357689300,1744332696833,-500.0,0.00019452,2]
[357689301,1744332696841,-500.0,0.00019452,2]
[357689302,1744332696851,-500.0,0.00019452,2]
[357689303,1744332696860,-500.0,0.00019452,2]
[357689304,1744332696869,-500.0,0.00019452,2]
[357689305,1744332696880,-519.3,0.00019452,2]
[357689306,1744332696889,-1328.83,0.00019452,2]
[357689307,1744332696899,-920.39,0.00019452,2]
[357689308,1744332696909,-1101.36,0.00019452,2]
[357689309,1744332696918,-500.0,0.00019452,2]
[357689310,1744332697050,-818.53,0.00019452,2]
[357689311,1744332697070,-856.67,0.00019452,2]
[357689312,1744332697079,-743.65,0.00019452,2]
[357689313,1744332697089,-1156.1,0.00019452,2]
[357689314,1744332697098,-678.36,0.00019452,2]
[357689315,1744332697108,-1705.48,0.00019452,2]
[357689316,1744332697117,-716.68,0.00019452,2]
[357689317,1744332697126,-500.0,0.00019452,2]
[357689318,1744332697135,-472.07,0.00019452,2]
[357689319,1744332697145,-1296.89,0.00019452,2]
[357689320,1744332697154,-500.0,0.00019452,2]
[357689321,1744332697164,-790.9,0.00019452,2]
[357689322,1744332697174,-704.94,0.00019452,2]
[357689323,1744332697183,-567.7,0.00019452,2]
[357689324,1744332697193,-500.0,0.00019452,2]
[357689325,1744332697202,-558.42,0.00019452,2]
[357689326,1744332697212,-500.0,0.00019452,2]
[357689327,1744332697221,-1188.07,0.00019452,2]
[357689328,1744332697230,-500.0,0.00019452,2]
[357689329,1744332697240,-714.62,0.00019452,2]
[357689330,1744332697250,-3771.47,0.00019452,2]
[357689331,1744332697259,-570.24,0.00019452,2]
[357689332,1744332697269,-1402.01,0.00019452,2]
[357689333,1744332697278,-500.0,0.00019452,2]
[357689334,1744332697288,-1107.44,0.00019452,2]
[357689335,1744332697297,-500.0,0.00019452,2]
[357689336,1744332697307,-726.32,0.00019452,2]
[357689337,1744332697316,-1438.7,0.00019452,2]
[357689338,1744332697326,-500.0,0.00019452,2]
[357689339,1744332697336,-934.2,0.00019452,2]
[357689340,1744332697345,-870.5,0.00019452,2]
[357689341,1744332697354,-1864.53,0.00019452,2]
[357689342,1744332697363,-537.53,0.00019452,2]
[357689343,1744332697373,-998.15,0.00019452,2]
[357689344,1744332697383,-1383.56,0.00019452,2]
[357689345,1744332697392,-3529.69,0.00019452,2]
[357689346,1744332697402,-500.0,0.00019452,2]
[357689347,1744332697412,-500.0,0.00019452,2]
[357689348,1744332697421,-3044.77,0.00019452,2]
[357689349,1744332697430,-2146.75,0.00019452,2]
[357689350,1744332697440,-1512.13,0.00019452,2]
[357689351,1744332697449,-14936.72,0.00019452,2]
[357689352,1744332697459,-1335.19,0.00019452,2]
[357689353,1744332697469,-500.0,0.00019452,2]
[357689354,1744332697479,-1204.17,0.00019452,2]
[357689355,1744332697488,-2211.01,0.00019452,2]
[357689356,1744332697497,-1290.13,0.00019452,2]
[357689357,1744332697507,-500.0,0.00019452,2]
[357689358,1744332697516,-782.17,0.00019452,2]
[357689359,1744332697525,-1521.17,0.00019452,2]
[357689360,1744332697536,-500.0,0.00019452,2]
[357689361,1744332697545,-500.0,0.00019452,2]
[357689362,1744332697555,-500.0,0.00019452,2]
[357689363,1744332697564,-529.58,0.00019452,2]
[357689364,1744332697574,-3640.91,0.00019452,2]
[357689365,1744332697583,-708.03,0.00019452,2]
[357689366,1744332697593,-500.0,0.00019452,2]
[357689367,1744332697604,-1604.56,0.00019452,2]
[357689368,1744332697613,-500.0,0.00019452,2]
[357689369,1744332697623,-1186.97,0.00019452,2]
[357689370,1744332697633,-7810.81,0.00019452,2]
[357689371,1744332697643,-500.0,0.00019452,2]
[357689372,1744332697652,-640.07,0.00019452,2]
[357689373,1744332697664,-500.0,0.00019452,2]
[357689374,1744332697674,-614.86,0.00019452,2]
[357689375,1744332697683,-13554.02,0.00019452,2]
[357689376,1744332697693,-769.63,0.00019452,2]
[357689377,1744332697704,-5806.94,0.00019452,2]
[357689378,1744332697714,-555.86,0.00019452,2]
[357689379,1744332697724,-1492.5,0.00019452,2]
[357689380,1744332697734,-726.32,0.00019452,2]
[357689381,1744332697746,-659.35,0.00019452,2]
[357689382,1744332697757,-688.0,0.00019452,2]
[357689383,1744332697767,-1067.15,0.00019452,2]
[357689384,1744332697776,-2931.48,0.00019452,2]
[357689385,1744332697790,-1735.47,0.00019452,2]
[357689386,1744332697799,-1109.5,0.00019452,2]
[357689387,1744332697809,-711.11,0.00019452,2]
[357689388,1744332697819,-13734.21,0.00019452,2]
[357689389,1744332697828,-2323.29,0.00019452,2]
[357689390,1744332697837,-1042.58,0.00019452,2]
[357689391,1744332697846,-728.17,0.00019452,2]
[357689392,1744332697855,-500.0,0.00019452,2]
[357689393,1744332697865,-569.2,0.00019452,2]
[357689394,1744332697873,-500.0,0.00019452,2]
[357689395,1744332697882,-4218.44,0.00019452,2]
[357689396,1744332697892,-848.49,0.00019452,2]
[357689397,1744332697901,-2639.23,0.00019452,2]
[357689398,1744332697910,-2518.79,0.00019452,2]
[357689399,1744332697920,-500.0,0.00019452,2]
[357689400,1744332697929,-2840.99,0.00019452,2]
[357689401,1744332697938,-630.78,0.00019452,2]
[357689402,1744332697947,-500.0,0.00019452,2]
[357689403,1744332697957,-755.35,0.00019452,2]
[357689404,1744332697967,-500.0,0.00019452,2]
[357689405,1744332697977,-1220.83,0.00019452,2]
[357689406,1744332697986,-5035.72,0.00019452,2]
[357689407,1744332697996,-3916.52,0.00019452,2]
[357689408,1744332698006,-500.0,0.00019452,2]
[357689409,1744332698015,-500.0,0.00019452,2]
[357689410,1744332698025,-508.34,0.00019452,2]
[357689411,1744332698035,-1000.19,0.00019452,2]
[357689412,1744332698044,-884.76,0.00019452,2]
[357689413,1744332698059,-500.0,0.00019452,2]
[357689414,1744332698082,-4175.53,0.00019452,2]
[357689415,1744332698099,-1347.73,0.00019452,2]
[357689416,1744332698121,-2772.56,0.00019452,2]
[357689417,1744332698142,-792.4,0.00019452,2]
[357689418,1744332698163,-856.93,0.00019452,2]
[357689419,1744332698181,-740.48,0.00019452,2]
[357689420,1744332698202,-500.0,0.00019452,2]
[357689421,1744332698217,-781.83,0.00019452,2]
[357689422,1744332698233,-500.0,0.00019452,2]
[357689423,1744332698252,-601.25,0.00019452,2]
[357689424,1744332698275,-9626.05,0.00019452,2]
[357689425,1744332698296,-966.14,0.00019452,2]
[357689426,1744332698310,-1947.04,0.00019452,2]
[357689427,1744332698331,-500.0,0.00019452,2]
[357689428,1744332698345,-4677.94,0.00019452,2]
[357689429,1744332698362,-500.0,0.00019452,2]
[357689430,1744332698380,-566.20801646,0.00019452,2]
[357689431,1744332698395,-527.85,0.00019452,2]
[357689432,1744332698411,-500.0,0.00019452,2]
[357689433,1744332698428,-714.13,0.00019452,2]
[357689434,1744332698443,-756.51,0.00019452,2]
[357689435,1744332698460,-808.09,0.00019452,2]
[357689436,1744332698475,-6483.88,0.00019452,2]
[357689437,1744332698491,-6484.18,0.00019452,2]
[357689438,1744332698508,-500.0,0.00019452,2]
[357689439,1744332698524,-615.42,0.00019452,2]
[357689440,1744332698541,-500.0,0.00019452,2]
[357689441,1744332698558,-1945.56,0.00019452,2]
[357689442,1744332698574,-524.93,0.00019452,2]
[357689443,1744332698590,-1064.33,0.00019452,2]
[357689444,1744332698606,-585.82,0.00019452,2]
[357689445,1744332698623,-1433.89,0.00019452,2]
[357689446,1744332698638,-917.83,0.00019452,2]
[357689447,1744332698656,-500.0,0.00019452,2]
[357689448,1744332698672,-668.16,0.00019452,2]
[357689449,1744332698687,-1100.79,0.00019452,2]
[357689450,1744332698703,-500.0,0.00019452,2]
[357689451,1744332698717,-529.86225634,0.00019452,2]
[357689452,1744332698733,-540.97,0.00019452,2]
[357689453,1744332698747,-4679.43,0.00019452,2]
[357689454,1744332698762,-947.12,0.00019452,2]
[357689455,1744332698778,-500.0,0.00019452,2]
[357689456,1744332698794,-500.0,0.00019452,2]
[357689457,1744332698810,-1008.44,0.00019452,2]
[357689458,1744332698825,-4183.52,0.00019452,2]
[357689459,1744332698841,-1151.7,0.00019452,2]
[357689460,1744332698857,-759.31,0.00019452,2]
[357689461,1744332698872,-500.0,0.00019452,2]
[357689462,1744332698888,-500.0,0.00019452,2]
[357689463,1744332698904,-626.77,0.00019452,2]
[357689464,1744332698918,-942.33,0.00019452,2]
[357689465,1744332698934,-500.0,0.00019452,2]
[357689466,1744332698949,-2564.86,0.00019452,2]
[357689467,1744332698965,-1699.0,0.00019452,2]
[357689468,1744332698981,-731.4,0.00019452,2]
[357689469,1744332699000,-500.0,0.00019452,2]
[357689470,1744332699014,-570.97,0.00019452,2]
[357689471,1744332699029,-754.83,0.00019452,2]
[357689472,1744332699044,-3260.9,0.00019452,2]
[357689473,1744332699060,-500.9,0.00019452,2]
[357689474,1744332699075,-500.0,0.00019452,2]
[357689475,1744332699090,-18184.96,0.00019452,2]
[357689476,1744332699105,-500.0,0.00019452,2]
[357689477,1744332699120,-477.67807555,0.00019452,2]
[357689478,1744332699136,-506.91,0.00019452,2]
[357689479,1744332699151,-514.69750052,0.00019452,2]
[357689480,1744332699167,-740.5,0.00019452,2]
[357689481,1744332699182,-500.0,0.00019452,2]
[357689482,1744332699198,-559.11,0.00019452,2]
[357689483,1744332699212,-1994.39,0.00019452,2]
[357689484,1744332699227,-911.05,0.00019452,2]
[357689485,1744332699242,-6436.24,0.00019452,2]
[357689486,1744332699257,-1272.17,0.00019452,2]
[357689487,1744332699273,-1574.76,0.00019452,2]
[357689488,1744332699288,-976.71,0.00019452,2]
[357689489,1744332699304,-1474.54,0.00019452,2]
[357689490,1744332699319,-650.21,0.00019452,2]
[357689491,1744332699335,-3050.81,0.00019452,2]
[357689492,1744332699349,-500.0,0.00019452,2]
[357689493,1744332699365,-2422.75,0.00019452,2]
[357689494,1744332699380,-524.39,0.00019452,2]
[357689495,1744332699396,-618.62,0.00019452,2]
[357689496,1744332699411,-5298.82,0.00019452,2]
[357689497,1744332699427,-181.08010149,0.00019453,2]
[357689498,1744332699443,-1000.0,0.000195,2]
[357689499,1744332699458,-187.78006525,0.00019508,2]
[357689500,1744332699474,-194.72792766,0.00019563,2]
[357689501,1744332699489,-201.93286099,0.00019618,2]
[357689502,1744332699507,-11630.24417326,0.00019659,2]
[357689503,1744332699523,-209.40437684,0.00019673,2]
[357689504,1744332699539,-1132.93,0.00019726,2]
[357689505,1744332699554,-3699.75,0.00019726,2]
[357689506,1744332699570,-865.73,0.00019726,2]
[357689507,1744332699586,-1251.82,0.00019726,2]
[357689508,1744332699601,-500.0,0.00019726,2]
[357689509,1744332699617,-599.27,0.00019726,2]
[357689510,1744332699633,-570.69,0.00019726,2]
[357689511,1744332699649,-822.09,0.00019726,2]
[357689512,1744332699667,-500.0,0.00019726,2]
[357689513,1744332699683,-500.0,0.00019726,2]
[357689514,1744332699698,-780.46,0.00019726,2]
[357689515,1744332699978,-911.25,0.00019726,2]
[357689516,1744332700000,-500.0,0.00019726,2]
[357689517,1744332700010,-500.0,0.00019726,2]
[357689518,1744332700019,-577.02512451,0.00019726,2]
[357689519,1744332700028,-500.0,0.00019726,2]
[357689520,1744332700040,-300.0,0.00019726,2]
[357689521,1744332700049,-500.0,0.00019726,2]
[357689522,1744332700058,-500.0,0.00019726,2]
[357689523,1744332700068,-500.0,0.00019726,2]
[357689524,1744332700077,-500.0,0.00019726,2]
[357689525,1744332700086,-1232.99,0.00019726,2]
[357689526,1744332700096,-588.16,0.00019726,2]
[357689527,1744332700106,-500.0,0.00019726,2]
[357689528,1744332700115,-500.0,0.00019726,2]
[357689529,1744332700124,-500.0,0.00019726,2]
[357689530,1744332700134,-507.17,0.00019726,2]
[357689531,1744332700143,-500.0,0.00019726,2]
[357689532,1744332700153,-1079.66,0.00019726,2]
[357689533,1744332700162,-1430.67,0.00019726,2]
[357689534,1744332700172,-1119.95,0.00019726,2]
[357689535,1744332700181,-625.16,0.00019726,2]
[357689536,1744332700191,-500.0,0.00019726,2]
[357689537,1744332700200,-500.0,0.00019726,2]
[357689538,1744332700209,-686.77,0.00019726,2]
[357689539,1744332700219,-2680.42,0.00019726,2]
[357689540,1744332700228,-500.0,0.00019726,2]
[357689541,1744332700238,-500.0,0.00019726,2]
[357689542,1744332700247,-500.0,0.00019726,2]
[357689543,1744332700257,-596.86,0.00019726,2]
[357689544,1744332700266,-441.01049136,0.00019726,2]
[357689545,1744332700276,-2411.42,0.00019726,2]
[357689546,1744332700285,-500.0,0.00019726,2]
[357689547,1744332700295,-687.7,0.00019726,2]
[357689548,1744332700304,-500.0,0.00019726,2]
[357689549,1744332700313,-902.62,0.00019726,2]
[357689550,1744332700323,-2689.13,0.00019726,2]
[357689551,1744332700332,-785.7,0.00019726,2]
[357689552,1744332700341,-500.0,0.00019726,2]
[357689553,1744332700350,-5675.99,0.00019726,2]
[357689554,1744332700360,-595.9772011,0.00019726,2]
[357689555,1744332700370,-870.2,0.00019726,2]
[357689556,1744332700379,-463.52279032,0.00019726,2]
[357689557,1744332700390,-597.88,0.00019726,2]
[357689558,1744332700399,-500.0,0.00019726,2]
[357689559,1744332700409,-626.25,0.00019726,2]
[357689560,1744332700419,-500.0,0.00019726,2]
[357689561,1744332700428,-892.18,0.00019726,2]
[357689562,1744332700438,-500.0,0.00019726,2]
[357689563,1744332700447,-682.01,0.00019726,2]
[357689564,1744332700456,-500.0,0.00019726,2]
[357689565,1744332700466,-500.0,0.00019726,2]
[357689566,1744332700476,-2060.38,0.00019726,2]
[357689567,1744332700485,-605.05,0.00019726,2]
[357689568,1744332700495,-500.0,0.00019726,2]
[357689569,1744332700505,-500.0,0.00019726,2]
[357689570,1744332700515,-2354.26,0.00019726,2]
[357689571,1744332700526,-622.34,0.00019726,2]
[357689572,1744332700535,-500.0,0.00019726,2]
[357689573,1744332700544,-1017.63,0.00019726,2]
[357689574,1744332700553,-938.97,0.00019726,2]
[357689575,1744332700563,-500.0,0.00019726,2]
[357689576,1744332700572,-658.07,0.00019726,2]
[357689577,1744332700582,-500.0,0.00019726,2]
[357689578,1744332700591,-500.0,0.00019726,2]
[357689579,1744332700601,-1373.8,0.00019726,2]
[357689580,1744332700611,-753.79,0.00019726,2]
[357689581,1744332700620,-1265.29,0.00019726,2]
[357689582,1744332700629,-500.0,0.00019726,2]
[357689583,1744332700639,-820.1,0.00019726,2]
[357689584,1744332700649,-584.98,0.00019726,2]
[357689585,1744332700661,-1800.19,0.00019726,2]
[357689586,1744332700672,-508.82,0.00019726,2]
[357689587,1744332700681,-500.0,0.00019726,2]
[357689588,1744332700692,-965.93,0.00019726,2]
[357689589,1744332700702,-622.37,0.00019726,2]
[357689590,1744332700712,-964.69,0.00019726,2]
[357689591,1744332700722,-1069.32,0.00019726,2]
[357689592,1744332700732,-1504.79,0.00019726,2]
[357689593,1744332700743,-626.21,0.00019726,2]
[357689594,1744332700753,-522.1,0.00019726,2]
[357689595,1744332700763,-500.0,0.00019726,2]
[357689596,1744332700772,-500.0,0.00019726,2]
[357689597,1744332700782,-500.0,0.00019726,2]
[357689598,1744332700792,-500.0,0.00019726,2]
[357689599,1744332700802,-519.3,0.00019726,2]
[357689600,1744332700811,-1328.83,0.00019726,2]
[357689601,1744332700821,-920.39,0.00019726,2]
[357689602,1744332700830,-1101.36,0.00019726,2]
[357689603,1744332700840,-500.0,0.00019726,2]
[357689604,1744332700850,-818.53,0.00019726,2]
[357689605,1744332700859,-856.67,0.00019726,2]
[357689606,1744332700869,-743.65,0.00019726,2]
[357689607,1744332700879,-1156.1,0.00019726,2]
[357689608,1744332700889,-678.36,0.00019726,2]
[357689609,1744332700898,-1705.48,0.00019726,2]
[357689610,1744332700908,-716.68,0.00019726,2]
[357689611,1744332700918,-500.0,0.00019726,2]
[357689612,1744332700927,-1296.89,0.00019726,2]
[357689613,1744332700937,-500.0,0.00019726,2]
[357689614,1744332700946,-790.9,0.00019726,2]
[357689615,1744332700955,-704.94,0.00019726,2]
[357689616,1744332700965,-567.7,0.00019726,2]
[357689617,1744332700974,-500.0,0.00019726,2]
[357689618,1744332700984,-558.42,0.00019726,2]
[357689619,1744332700994,-500.0,0.00019726,2]
[357689620,1744332701003,-1188.07,0.00019726,2]
[357689621,1744332701012,-500.0,0.00019726,2]
[357689622,1744332701022,-714.62,0.00019726,2]
[357689623,1744332701031,-3771.47,0.00019726,2]
[357689624,1744332701042,-570.24,0.00019726,2]
[357689625,1744332701051,-1402.01,0.00019726,2]
[357689626,1744332701061,-500.0,0.00019726,2]
[357689627,1744332701071,-1107.44,0.00019726,2]
[357689628,1744332701080,-339.70392224,0.00019726,2]
[357689629,1744332701089,-726.32,0.00019726,2]
[357689630,1744332701099,-1438.7,0.00019726,2]
[357689631,1744332701109,-500.0,0.00019726,2]
[357689632,1744332701118,-934.2,0.00019726,2]
[357689633,1744332701128,-870.5,0.00019726,2]
[357689634,1744332701137,-1864.53,0.00019726,2]
[357689635,1744332701146,-537.53,0.00019726,2]
[357689636,1744332701155,-998.15,0.00019726,2]
[357689637,1744332701165,-1383.56,0.00019726,2]
[357689638,1744332701174,-3529.69,0.00019726,2]
[357689639,1744332701184,-645.05872977,0.00019726,2]
[357689640,1744332701193,-500.0,0.00019726,2]
[357689641,1744332701203,-3044.77,0.00019726,2]
[357689642,1744332701212,-2146.75,0.00019726,2]
[357689643,1744332701222,-1512.13,0.00019726,2]
[357689644,1744332701231,-14936.72,0.00019726,2]
[357689645,1744332701241,-1335.19,0.00019726,2]
[357689646,1744332701250,-500.0,0.00019726,2]
[357689647,1744332701259,-1204.17,0.00019726,2]
[357689648,1744332701269,-2211.01,0.00019726,2]
[357689649,1744332701278,-1290.13,0.00019726,2]
[357689650,1744332701288,-500.0,0.00019726,2]
[357689651,1744332701298,-782.17,0.00019726,2]
[357689652,1744332701307,-1521.17,0.00019726,2]
[357689653,1744332701317,-500.0,0.00019726,2]
[357689654,1744332701326,-500.0,0.00019726,2]
[357689655,1744332701335,-500.0,0.00019726,2]
[357689656,1744332701344,-3640.91,0.00019726,2]
[357689657,1744332701354,-708.03,0.00019726,2]
[357689658,1744332701364,-500.0,0.00019726,2]
[357689659,1744332701373,-1604.56,0.00019726,2]
[357689660,1744332701382,-366.3169813,0.00019726,2]
[357689661,1744332701391,-1186.97,0.00019726,2]
[357689662,1744332701401,-7810.81,0.00019726,2]
[357689663,1744332701410,-500.0,0.00019726,2]
[357689664,1744332701420,-640.07,0.00019726,2]
[357689665,1744332701429,-500.0,0.00019726,2]
[357689666,1744332701439,-614.86,0.00019726,2]
[357689667,1744332701449,-13554.02,0.00019726,2]
[357689668,1744332701459,-769.63,0.00019726,2]
[357689669,1744332701469,-5806.94,0.00019726,2]
[357689670,1744332701478,-555.86,0.00019726,2]
[357689671,1744332701487,-1492.5,0.00019726,2]
[357689672,1744332701496,-726.32,0.00019726,2]
[357689673,1744332701506,-659.35,0.00019726,2]
[357689674,1744332701515,-688.0,0.00019726,2]
[357689675,1744332701525,-1067.15,0.00019726,2]
[357689676,1744332701535,-2931.48,0.00019726,2]
[357689677,1744332701544,-1735.47,0.00019726,2]
[357689678,1744332701555,-1109.5,0.00019726,2]
[357689679,1744332701565,-711.11,0.00019726,2]
[357689680,1744332701575,-13734.21,0.00019726,2]
[357689681,1744332701585,-2323.29,0.00019726,2]
[357689682,1744332701595,-1042.58,0.00019726,2]
[357689683,1744332701605,-728.17,0.00019726,2]
[357689684,1744332701615,-500.0,0.00019726,2]
[357689685,1744332701625,-569.2,0.00019726,2]
[357689686,1744332701634,-500.0,0.00019726,2]
[357689687,1744332701643,-4218.44,0.00019726,2]